fUSD/lending_fUSD_20250930
["ID","MTS","AMOUNT","RATE_DAILY","PERIOD"]
[388589720,1759246313907,-333.13778918,0.0002,2]
[388589721,1759246313917,-500.0,0.0002,2]
[388589722,1759246313927,-748.78,0.0002,2]
[388589723,1759246313937,-500.0,0.0002,2]
[388589724,1759246313947,-873.41,0.0002,2]
[388589725,1759246313957,-1444.18,0.0002,2]
[388589726,1759246313967,-463.48,0.0002,2]
[388589727,1759246313977,-500.0,0.0002,2]
[388589728,1759246313987,-500.0,0.0002,2]
[388589729,1759246313997,-500.0,0.0002,2]
[388589730,1759246314006,-1278.36,0.0002,2]
[388589731,1759246314017,-856.51,0.0002,2]
[388589732,1759246314027,-500.0,0.0002,2]
[388589733,1759246314036,-512.95,0.0002,2]
[388589734,1759246314046,-1123.83,0.0002,2]
[388589735,1759246314055,-500.0,0.0002,2]
[388589736,1759246314065,-3067.31,0.0002,2]
[388589737,1759246314074,-500.0,0.0002,2]
[388589738,1759246314084,-500.0,0.0002,2]
[388589739,1759246314094,-500.0,0.0002,2]
[388589740,1759246314105,-790.11,0.0002,2]
[388589741,1759246314115,-500.0,0.0002,2]
[388589742,1759246314125,-1074.86,0.0002,2]
[388589743,1759246314134,-500.0,0.0002,2]
[388589744,1759246314144,-743.02,0.0002,2]
[388589745,1759246314154,-500.0,0.0002,2]
[388589746,1759246314163,-2639.35,0.0002,2]
[388589747,1759246314173,-500.0,0.0002,2]
[388589748,1759246314183,-500.0,0.0002,2]
[388589749,1759246314193,-500.0,0.0002,2]
[388589750,1759246314203,-603.37,0.0002,2]
[388589751,1759246314212,-2515.31,0.0002,2]
[388589752,1759246314222,-500.0,0.0002,2]
[388589753,1759246314232,-500.0,0.0002,2]
[388589754,1759246314243,-500.0,0.0002,2]
[388589755,1759246314253,-1424.54,0.0002,2]
[388589756,1759246314264,-629.69,0.0002,2]
[388589757,1759246314274,-500.0,0.0002,2]
[388589758,1759246314285,-500.0,0.0002,2]
[388589759,1759246314295,-1515.2,0.0002,2]
[388589760,1759246314304,-2490.07,0.0002,2]
[388589761,1759246314314,-500.0,0.0002,2]
[388589762,1759246314324,-509.34,0.0002,2]
[388589763,1759246314337,-500.0,0.0002,2]
[388589764,1759246314347,-565.6,0.0002,2]
[388589765,1759246314356,-500.0,0.0002,2]
[388589766,1759246314367,-500.0,0.0002,2]
[388589767,1759246314377,-666.34,0.0002,2]
[388589768,1759246314387,-544.49,0.0002,2]
[388589769,1759246314395,-500.0,0.0002,2]
[388589770,1759246314403,-685.3,0.0002,2]
[388589771,1759246314411,-500.0,0.0002,2]
[388589772,1759246314419,-500.0,0.0002,2]
[388589773,1759246314428,-500.0,0.0002,2]
[388589774,1759246314437,-500.0,0.0002,2]
[388589775,1759246314445,-500.0,0.0002,2]
[388589776,1759246314454,-500.0,0.0002,2]
[388589777,1759246314462,-500.0,0.0002,2]
[388589778,1759246314471,-500.0,0.0002,2]
[388589779,1759246314480,-856.76,0.0002,2]
[388589780,1759246314490,-784.99,0.0002,2]
[388589781,1759246314499,-500.0,0.0002,2]
[388589782,1759246314509,-500.0,0.0002,2]
[388589783,1759246314519,-500.0,0.0002,2]
[388589784,1759246314529,-500.0,0.0002,2]
[388589785,1759246314539,-4857.1,0.0002,2]
[388589786,1759246314548,-2587.65,0.0002,2]
[388589787,1759246314558,-1000.84,0.0002,2]
[388589788,1759246314568,-500.0,0.0002,2]
[388589789,1759246314577,-500.0,0.0002,2]
[388589790,1759246314587,-614.48847602,0.0002,2]
[388589791,1759246314597,-500.0,0.0002,2]
[388589792,1759246314607,-500.0,0.0002,2]
[388589793,1759246314618,-955.87,0.0002,2]
[388589794,1759246314920,-500.0,0.0002,2]
[388589795,1759246314982,-620.53,0.0002,2]
[388589796,1759246314993,-500.0,0.0002,2]
[388589797,1759246315002,-1236.64,0.0002,2]
[388589798,1759246315012,-500.0,0.0002,2]
[388589799,1759246315021,-500.0,0.0002,2]
[388589800,1759246315030,-500.0,0.0002,2]
[388589801,1759246315040,-500.0,0.0002,2]
[388589802,1759246315049,-1720.79,0.0002,2]
[388589803,1759246315059,-2263.53,0.0002,2]
[388589804,1759246315069,-500.0,0.0002,2]
[388589805,1759246315078,-500.0,0.0002,2]
[388589806,1759246315088,-1017.47,0.0002,2]
[388589807,1759246315098,-500.0,0.0002,2]
[388589808,1759246315108,-500.0,0.0002,2]
[388589809,1759246315118,-500.0,0.0002,2]
[388589810,1759246315127,-642.86,0.0002,2]
[388589811,1759246315137,-500.0,0.0002,2]
[388589812,1759246315147,-2291.89,0.0002,2]
[388589813,1759246315156,-500.0,0.0002,2]
[388589814,1759246315165,-918.34,0.0002,2]
[388589815,1759246315175,-2740.65,0.0002,2]
[388589816,1759246315185,-876.15,0.0002,2]
[388589817,1759246315195,-5036.26,0.0002,2]
[388589818,1759246315204,-500.0,0.0002,2]
[388589819,1759246315214,-1702.84,0.0002,2]
[388589820,1759246315223,-583.7,0.0002,2]
[388589821,1759246315233,-3972.16,0.0002,2]
[388589822,1759246315243,-711.31,0.0002,2]
[388589823,1759246315252,-1715.56,0.0002,2]
[388589824,1759246315261,-500.0,0.0002,2]
[388589825,1759246315271,-500.0,0.0002,2]
[388589826,1759246315281,-838.69,0.0002,2]
[388589827,1759246315292,-795.93,0.0002,2]
[388589828,1759246315302,-3407.7,0.0002,2]
[388589829,1759246315312,-1305.49,0.0002,2]
[388589830,1759246315322,-1105.85,0.0002,2]
[388589831,1759246315336,-500.0,0.0002,2]
[388589832,1759246315346,-500.0,0.0002,2]
[388589833,1759246315355,-1298.46,0.0002,2]
[388589834,1759246315367,-576.52,0.0002,2]
[388589835,1759246315378,-500.0,0.0002,2]
[388589836,1759246315387,-894.0,0.0002,2]
[388589837,1759246315397,-665.23,0.0002,2]
[388589838,1759246315408,-1000.0,0.0002,2]
[388589839,1759246315417,-1958.71,0.0002,2]
[388589840,1759246315427,-1197.44,0.0002,2]
[388589841,1759246315436,-1000.0,0.0002,2]
[388589842,1759246315446,-500.0,0.0002,2]
[388589843,1759246315455,-1000.0,0.0002,2]
[388589844,1759246315464,-1000.0,0.0002,2]
[388589845,1759246315473,-500.0,0.0002,2]
[388589846,1759246315483,-1000.0,0.0002,2]
[388589847,1759246315492,-500.0,0.0002,2]
[388589848,1759246315502,-1000.0,0.0002,2]
[388589849,1759246315512,-1000.0,0.0002,2]
[388589850,1759246315522,-507.83,0.0002,2]
[388589851,1759246315531,-311.75427228,0.0002,2]
[388589852,1759246315541,-500.0,0.0002,2]
[388589853,1759246315550,-500.0,0.0002,2]
[388589854,1759246315560,-500.0,0.0002,2]
[388589855,1759246315569,-500.0,0.0002,2]
[388589856,1759246315578,-600.48,0.0002,2]
[388589857,1759246315588,-500.0,0.0002,2]
[388589858,1759246315598,-798.63,0.0002,2]
[388589859,1759246315607,-1205.22,0.0002,2]
[388589860,1759246315618,-1348.57,0.0002,2]
[388589861,1759246315628,-572.59,0.0002,2]
[388589862,1759246315638,-500.0,0.0002,2]
[388589863,1759246315647,-1363.77,0.0002,2]
[388589864,1759246315656,-500.0,0.0002,2]
[388589865,1759246315665,-4476.81,0.0002,2]
[388589866,1759246315674,-672.17,0.0002,2]
[388589867,1759246315684,-500.0,0.0002,2]
[388589868,1759246315694,-1570.81,0.0002,2]
[388589869,1759246315703,-1083.55,0.0002,2]
[388589870,1759246315713,-500.0,0.0002,2]
[388589871,1759246315722,-500.0,0.0002,2]
[388589872,1759246315732,-500.0,0.0002,2]
[388589873,1759246315741,-1413.1,0.0002,2]
[388589874,1759246315751,-500.0,0.0002,2]
[388589875,1759246315760,-500.0,0.0002,2]
[388589876,1759246315770,-1559.28,0.0002,2]
[388589877,1759246315780,-1252.09,0.0002,2]
[388589878,1759246315790,-500.0,0.0002,2]
[388589879,1759246315799,-500.0,0.0002,2]
[388589880,1759246315808,-500.0,0.0002,2]
[388589881,1759246315819,-500.0,0.0002,2]
[388589882,1759246315828,-2063.17,0.0002,2]
[388589883,1759246315838,-882.83,0.0002,2]
[388589884,1759246315848,-500.0,0.0002,2]
[388589885,1759246315857,-500.0,0.0002,2]
[388589886,1759246315868,-2665.26,0.0002,2]
[388589887,1759246315879,-1563.72,0.0002,2]
[388589888,1759246315889,-500.0,0.0002,2]
[388589889,1759246315899,-500.0,0.0002,2]
[388589890,1759246315908,-500.0,0.0002,2]
[388589891,1759246315918,-583.08,0.0002,2]
[388589892,1759246315928,-500.0,0.0002,2]
[388589893,1759246315937,-837.59,0.0002,2]
[388589894,1759246315947,-934.85,0.0002,2]
[388589895,1759246315956,-527.0268783,0.0002,2]
[388589896,1759246315966,-3090.82,0.0002,2]
[388589897,1759246315975,-500.0,0.0002,2]
[388589898,1759246315984,-1262.19,0.0002,2]
[388589899,1759246315994,-275.07691673,0.0002,2]
[388589900,1759246316003,-150.0,0.0002,2]
[388589901,1759246316012,-4877.12,0.0002,2]
[388589902,1759246316022,-500.0,0.0002,2]
[388589903,1759246316031,-500.0,0.0002,2]
[388589904,1759246316041,-150.0,0.0002,2]
[388589905,1759246316050,-968.06,0.0002,2]
[388589906,1759246316059,-500.0,0.0002,2]
[388589907,1759246316069,-500.0,0.0002,2]
[388589908,1759246316078,-933.84,0.0002,2]
[388589909,1759246316088,-1063.83,0.0002,2]
[388589910,1759246316098,-1380.92,0.0002,2]
[388589911,1759246316108,-500.0,0.0002,2]
[388589912,1759246316118,-500.0,0.0002,2]
[388589913,1759246316128,-500.0,0.0002,2]
[388589914,1759246316139,-1653.6,0.0002,2]
[388589915,1759246316150,-500.0,0.0002,2]
[388589916,1759246316161,-500.0,0.0002,2]
[388589917,1759246316171,-904.06,0.0002,2]
[388589918,1759246316180,-500.0,0.0002,2]
[388589919,1759246316190,-500.0,0.0002,2]
[388589920,1759246316201,-888.74,0.0002,2]
[388589921,1759246316211,-500.0,0.0002,2]
[388589922,1759246316220,-901.55,0.0002,2]
[388589923,1759246316230,-500.0,0.0002,2]
[388589924,1759246316240,-523.29,0.0002,2]
[388589925,1759246316250,-1069.66,0.0002,2]
[388589926,1759246316259,-150.0,0.0002,2]
[388589927,1759246316269,-500.0,0.0002,2]
[388589928,1759246316279,-1738.73,0.0002,2]
[388589929,1759246316288,-500.0,0.0002,2]
[388589930,1759246316298,-500.0,0.0002,2]
[388589931,1759246316309,-500.0,0.0002,2]
[388589932,1759246316319,-500.0,0.0002,2]
[388589933,1759246316329,-1334.66,0.0002,2]
[388589934,1759246316342,-500.0,0.0002,2]
[388589935,1759246316351,-772.87,0.0002,2]
[388589936,1759246316362,-1457.28,0.0002,2]
[388589937,1759246316372,-500.0,0.0002,2]
[388589938,1759246316382,-2042.26,0.0002,2]
[388589939,1759246316392,-617.19638511,0.0002,2]
[388589940,1759246316402,-500.0,0.0002,2]
[388589941,1759246316412,-789.99,0.0002,2]
[388589942,1759246316422,-500.0,0.0002,2]
[388589943,1759246316433,-4908.82,0.0002,2]
[388589944,1759246316443,-599.17,0.0002,2]
[388589945,1759246316453,-688.98,0.0002,2]
[388589946,1759246316463,-1033.67,0.0002,2]
[388589947,1759246316472,-500.0,0.0002,2]
[388589948,1759246316482,-3533.54,0.0002,2]
[388589949,1759246316491,-3132.29,0.0002,2]
[388589950,1759246316501,-738.59,0.0002,2]
[388589951,1759246316511,-753.73,0.0002,2]
[388589952,1759246316520,-500.0,0.0002,2]
[388589953,1759246316529,-230.09245311,0.0002,2]
[388589954,1759246316539,-500.0,0.0002,2]
[388589955,1759246316548,-500.0,0.0002,2]
[388589956,1759246316558,-3629.01,0.0002,2]
[388589957,1759246316570,-437.01693127,0.0002,2]
[388589958,1759246316580,-500.0,0.0002,2]
[388589959,1759246316589,-702.96,0.0002,2]
[388589960,1759246316599,-500.0,0.0002,2]
[388589961,1759246316609,-500.0,0.0002,2]
[388589962,1759246316619,-500.0,0.0002,2]
[388589963,1759246316629,-1002.63,0.0002,2]
[388589964,1759246316639,-420.29090459,0.0002,2]
[388589965,1759246316649,-2006.84,0.0002,2]
[388589966,1759246316659,-500.0,0.0002,2]
[388589967,1759246316669,-5279.13,0.0002,2]
[388589968,1759246316679,-958.36,0.0002,2]
[388589969,1759246316688,-1530.68,0.0002,2]
[388589970,1759246316698,-500.0,0.0002,2]
[388589971,1759246316707,-1791.18,0.0002,2]
[388589972,1759246316717,-630.96,0.0002,2]
[388589973,1759246316727,-500.0,0.0002,2]
[388589974,1759246316736,-6094.5,0.0002,2]
[388589975,1759246316746,-500.0,0.0002,2]
[388589976,1759246316756,-928.38,0.0002,2]
[388589977,1759246316768,-2498.35,0.0002,2]
[388589978,1759246316777,-678.96,0.0002,2]
[388589979,1759246316787,-702.97,0.0002,2]
[388589980,1759246316798,-500.0,0.0002,2]
[388589981,1759246316807,-3187.71,0.0002,2]
[388589982,1759246316818,-500.0,0.0002,2]
[388589983,1759246316827,-500.0,0.0002,2]
[388589984,1759246316837,-500.0,0.0002,2]
[388589985,1759246316848,-500.0,0.0002,2]
[388589986,1759246316858,-3214.37,0.0002,2]
[388589987,1759246316869,-871.68,0.0002,2]
[388589988,1759246316879,-1474.61,0.0002,2]
[388589989,1759246316889,-3264.57,0.0002,2]
[388589990,1759246316900,-500.0,0.0002,2]
[388589991,1759246316911,-4106.25,0.0002,2]
[388589992,1759246316922,-500.0,0.0002,2]
[388589993,1759246316932,-1077.96,0.0002,2]
[388589994,1759246316942,-470.09502259,0.0002,2]
[388589995,1759246316952,-4498.22,0.0002,2]
[388589996,1759246316962,-1151.92,0.0002,2]
[388589997,1759246316974,-802.15,0.0002,2]
[388589998,1759246316984,-730.58,0.0002,2]
[388589999,1759246316994,-500.0,0.0002,2]
[388590000,1759246317003,-4232.33,0.0002,2]
[388590001,1759246317012,-2236.75,0.0002,2]
[388590002,1759246317022,-3523.6,0.0002,2]
[388590003,1759246317032,-500.0,0.0002,2]
[388590004,1759246317043,-500.0,0.0002,2]
[388590005,1759246317053,-3770.1,0.0002,2]
[388590006,1759246317064,-505.11,0.0002,2]
[388590007,1759246317075,-1379.28,0.0002,2]
[388590008,1759246317086,-500.0,0.0002,2]
[388590009,1759246317096,-4031.11,0.0002,2]
[388590010,1759246317106,-1999.95,0.0002,2]
[388590011,1759246317117,-500.0,0.0002,2]
[388590012,1759246317126,-4787.28,0.0002,2]
[388590013,1759246317136,-755.69,0.0002,2]
[388590014,1759246317145,-500.0,0.0002,2]
[388590015,1759246317156,-500.0,0.0002,2]
[388590016,1759246317165,-553.91,0.0002,2]
[388590017,1759246317175,-154.09,0.0002,2]
[388590018,1759246317184,-689.23,0.0002,2]
[388590019,1759246317195,-298.34650185,0.0002,2]
[388590020,1759246317204,-4645.85,0.0002,2]
[388590021,1759246317214,-1277.94,0.0002,2]
[388590022,1759246317224,-4108.21,0.0002,2]
[388590023,1759246317234,-500.0,0.0002,2]
[388590024,1759246317243,-2530.75,0.0002,2]
[388590025,1759246317253,-1066.81,0.0002,2]
[388590026,1759246317263,-500.0,0.0002,2]
[388590027,1759246317272,-500.0,0.0002,2]
[388590028,1759246317282,-500.0,0.0002,2]
[388590029,1759246317291,-500.0,0.0002,2]
[388590030,1759246317300,-4076.64,0.0002,2]
[388590031,1759246317311,-500.0,0.0002,2]
[388590032,1759246317320,-4772.39,0.0002,2]
[388590033,1759246317332,-1310.52,0.0002,2]
[388590034,1759246317344,-1714.76,0.0002,2]
[388590035,1759246317353,-500.0,0.0002,2]
[388590036,1759246317460,-500.0,0.0002,2]
[388590037,1759246317470,-500.0,0.0002,2]
[388590038,1759246317481,-500.0,0.0002,2]
[388590039,1759246317491,-500.0,0.0002,2]
[388590040,1759246317500,-500.0,0.0002,2]
[388590041,1759246317511,-1052.95,0.0002,2]
[388590042,1759246317520,-562.81,0.0002,2]
[388590043,1759246317529,-8540.161841,0.0002,2]
[388590044,1759246317539,-3774.66,0.0002,2]
[388590045,1759246317549,-3595.55,0.0002,2]
[388590046,1759246317558,-500.0,0.0002,2]
[388590047,1759246317568,-836.75,0.0002,2]
[388590048,1759246317577,-750.66,0.0002,2]
[388590049,1759246317586,-354.136583,0.0002,2]
[388590050,1759246317596,-417.411714,0.0002,2]
[388590051,1759246317606,-1783.61,0.0002,2]
[388590052,1759246317618,-405.942172,0.0002,2]
[388590053,1759246317628,-3714.03504,0.0002,2]
[388590054,1759246317637,-500.0,0.0002,2]
[388590055,1759246317647,-7310.876563,0.0002,2]
[388590056,1759246317657,-500.0,0.0002,2]
[388590057,1759246317666,-500.0,0.0002,2]
[388590058,1759246317676,-545.83,0.0002,2]
[388590059,1759246317686,-648.89,0.0002,2]
[388590060,1759246317696,-396.37,0.0002,2]
[388590061,1759246317705,-500.0,0.0002,2]
[388590062,1759246317716,-826.66,0.0002,2]
[388590063,1759246317726,-500.0,0.0002,2]
[388590064,1759246317735,-1049.18,0.0002,2]
[388590065,1759246317745,-3234.86,0.0002,2]
[388590066,1759246317754,-3569.9,0.0002,2]
[388590067,1759246317763,-1124.58,0.0002,2]
[388590068,1759246317773,-500.0,0.0002,2]
[388590069,1759246317782,-500.0,0.0002,2]
[388590070,1759246317791,-546.66,0.0002,2]
[388590071,1759246317800,-500.0,0.0002,2]
[388590072,1759246317810,-4111.45,0.0002,2]
[388590073,1759246317819,-1473.46,0.0002,2]
[388590074,1759246317829,-500.0,0.0002,2]
[388590075,1759246317838,-500.0,0.0002,2]
[388590076,1759246317847,-505.16,0.0002,2]
[388590077,1759246317857,-688.56,0.0002,2]
[388590078,1759246317868,-2668.61,0.0002,2]
[388590079,1759246317878,-2590.93,0.0002,2]
[388590080,1759246317888,-3238.13,0.0002,2]
[388590081,1759246317898,-2215.73,0.0002,2]
[388590082,1759246317907,-500.0,0.0002,2]
[388590083,1759246317916,-1500.97,0.0002,2]
[388590084,1759246317925,-605.93,0.0002,2]
[388590085,1759246317934,-3496.46,0.0002,2]
[388590086,1759246317944,-605.93,0.0002,2]
[388590087,1759246317953,-500.0,0.0002,2]
[388590088,1759246317962,-500.0,0.0002,2]
[388590089,1759246317972,-3269.23,0.0002,2]
[388590090,1759246317982,-817.59,0.0002,2]
[388590091,1759246317991,-296.0860325,0.0002,2]
[388590092,1759246318001,-3259.1,0.0002,2]
[388590093,1759246318010,-827.42,0.0002,2]
[388590094,1759246318019,-3746.27,0.0002,2]
[388590095,1759246318028,-500.0,0.0002,2]
[388590096,1759246318038,-583.28,0.0002,2]
[388590097,1759246318048,-2849.93,0.0002,2]
[388590098,1759246318058,-785.77,0.0002,2]
[388590099,1759246318067,-2413.95,0.0002,2]
[388590100,1759246318077,-500.0,0.0002,2]
[388590101,1759246318086,-500.0,0.0002,2]
[388590102,1759246318096,-500.0,0.0002,2]
[388590103,1759246318105,-549.93,0.0002,2]
[388590104,1759246318116,-760.85,0.0002,2]
[388590105,1759246318126,-1290.49,0.0002,2]
[388590106,1759246318136,-3809.34,0.0002,2]
[388590107,1759246318146,-1897.55,0.0002,2]
[388590108,1759246318156,-500.0,0.0002,2]
[388590109,1759246318165,-1234.73,0.0002,2]
[388590110,1759246318175,-313.28433657,0.0002,2]
[388590111,1759246318184,-4292.81,0.0002,2]
[388590112,1759246318193,-1754.78,0.0002,2]
[388590113,1759246318203,-2384.75,0.0002,2]
[388590114,1759246318212,-500.0,0.0002,2]
[388590115,1759246318222,-500.0,0.0002,2]
[388590116,1759246318232,-500.0,0.0002,2]
[388590117,1759246318242,-500.0,0.0002,2]
[388590118,1759246318252,-500.0,0.0002,2]
[388590119,1759246318262,-3359.21,0.0002,2]
[388590120,1759246318273,-5138.45,0.0002,2]
[388590121,1759246318283,-1979.25,0.0002,2]
[388590122,1759246318293,-655.26,0.0002,2]
[388590123,1759246318302,-500.0,0.0002,2]
[388590124,1759246318311,-1322.77,0.0002,2]
[388590125,1759246318320,-531.26,0.0002,2]
[388590126,1759246318331,-220.2419984,0.0002,2]
[388590127,1759246318343,-500.0,0.0002,2]
[388590128,1759246318352,-3085.65,0.0002,2]
[388590129,1759246318361,-2470.44,0.0002,2]
[388590130,1759246318374,-2727.78,0.0002,2]
[388590131,1759246318384,-500.0,0.0002,2]
[388590132,1759246318395,-500.0,0.0002,2]
[388590133,1759246318409,-500.0,0.0002,2]
[388590134,1759246318420,-500.0,0.0002,2]
[388590135,1759246318431,-4263.5,0.0002,2]
[388590136,1759246318442,-500.0,0.0002,2]
[388590137,1759246318451,-582.86787265,0.0002,2]
[388590138,1759246318461,-353.23441702,0.0002,2]
[388590139,1759246318470,-547.24,0.0002,2]
[388590140,1759246318480,-500.0,0.0002,2]
[388590141,1759246318489,-1482.44,0.0002,2]
[388590142,1759246318498,-500.0,0.0002,2]
[388590143,1759246318507,-1750.78,0.0002,2]
[388590144,1759246318517,-500.0,0.0002,2]
[388590145,1759246318527,-500.0,0.0002,2]
[388590146,1759246318536,-828.11,0.0002,2]
[388590147,1759246318545,-500.0,0.0002,2]
[388590148,1759246318555,-500.0,0.0002,2]
[388590149,1759246318565,-500.0,0.0002,2]
[388590150,1759246318574,-2451.72,0.0002,2]
[388590151,1759246318583,-563.50715495,0.0002,2]
[388590152,1759246318594,-1890.03,0.0002,2]
[388590153,1759246318604,-500.0,0.0002,2]
[388590154,1759246318615,-2537.88,0.0002,2]
[388590155,1759246318625,-2985.33,0.0002,2]
[388590156,1759246318634,-2483.82,0.0002,2]
[388590157,1759246318644,-1896.2,0.0002,2]
[388590158,1759246318654,-500.0,0.0002,2]
[388590159,1759246318663,-1838.21,0.0002,2]
[388590160,1759246318674,-826.68,0.0002,2]
[388590161,1759246318685,-500.0,0.0002,2]
[388590162,1759246318696,-1012.19,0.0002,2]
[388590163,1759246318706,-2222.19,0.0002,2]
[388590164,1759246318716,-500.0,0.0002,2]
[388590165,1759246318726,-2176.82,0.0002,2]
[388590166,1759246318735,-500.0,0.0002,2]
[388590167,1759246318744,-3211.51,0.0002,2]
[388590168,1759246318754,-500.0,0.0002,2]
[388590169,1759246318764,-1054.78,0.0002,2]
[388590170,1759246318774,-500.0,0.0002,2]
[388590171,1759246318784,-1902.77,0.0002,2]
[388590172,1759246318794,-1308.77,0.0002,2]
[388590173,1759246318804,-1143.1,0.0002,2]
[388590174,1759246318813,-2812.02,0.0002,2]
[388590175,1759246318822,-502.57248736,0.0002,2]
[388590176,1759246318831,-3019.59,0.0002,2]
[388590177,1759246318841,-594.12,0.0002,2]
[388590178,1759246318850,-868.48,0.0002,2]
[388590179,1759246318860,-569.36,0.0002,2]
[388590180,1759246318871,-2733.78,0.0002,2]
[388590181,1759246318881,-500.0,0.0002,2]
[388590182,1759246318890,-1573.89,0.0002,2]
[388590183,1759246318899,-1080.23,0.0002,2]
[388590184,1759246318909,-4441.33,0.0002,2]
[388590185,1759246318920,-1466.08,0.0002,2]
[388590186,1759246318930,-500.0,0.0002,2]
[388590187,1759246318940,-3548.75,0.0002,2]
[388590188,1759246318951,-500.0,0.0002,2]
[388590189,1759246318960,-4498.97,0.0002,2]
[388590190,1759246318969,-527.82,0.0002,2]
[388590191,1759246318979,-618.18,0.0002,2]
[388590192,1759246318990,-3544.87,0.0002,2]
[388590193,1759246319000,-644.8,0.0002,2]
[388590194,1759246319012,-1286.24,0.0002,2]
[388590195,1759246319023,-500.0,0.0002,2]
[388590196,1759246319035,-1042.82,0.0002,2]
[388590197,1759246319044,-500.0,0.0002,2]
[388590198,1759246319053,-3256.91,0.0002,2]
[388590199,1759246319063,-1857.31,0.0002,2]
[388590200,1759246319072,-1692.58,0.0002,2]
[388590201,1759246319081,-2270.66,0.0002,2]
[388590202,1759246319089,-500.0,0.0002,2]
[388590203,1759246319100,-500.0,0.0002,2]
[388590204,1759246319109,-2341.48,0.0002,2]
[388590205,1759246319120,-500.0,0.0002,2]
[388590206,1759246319130,-820.41,0.0002,2]
[388590207,1759246319141,-1359.2,0.0002,2]
[388590208,1759246319150,-540.78,0.0002,2]
[388590209,1759246319160,-500.0,0.0002,2]
[388590210,1759246319170,-500.0,0.0002,2]
[388590211,1759246319179,-914.33,0.0002,2]
[388590212,1759246319189,-500.0,0.0002,2]
[388590213,1759246319198,-1658.97,0.0002,2]
[388590214,1759246319208,-1103.38,0.0002,2]
[388590215,1759246319217,-500.0,0.0002,2]
[388590216,1759246319227,-3951.53,0.0002,2]
[388590217,1759246319237,-500.0,0.0002,2]
[388590218,1759246319245,-902.13,0.0002,2]
[388590219,1759246319255,-2762.8,0.0002,2]